Cogmind - Beta 16.1 @@@ ROGUE MODE // 2026.02.11 @ 22:45:01 Player: Rudrot Result: Destroyed by G-34 Mercenary with Small Laser Performance ------------- Evolutions (0) 0 Regions Visited (1) 200 Robots Destroyed (30) 150 Value Destroyed (355) 355 Prototype IDs (0) 0 Alien Tech Used (0) 0 Bonus (0) 0 TOTAL SCORE: 705 Bonus ------- None Cogmind --------- Core Integrity 0/250 Matter 292/300 Energy 265/265 System Corruption 0% Temperature Cool (9) Movement Rolling (80) Location -10/Materials Parts ------- > --- POWER (1) -------- Improved Ion Engine > --- PROPULSION (2) --- Wheel Wheel > --- UTILITY (2) ------ Signal Interpreter Terrain Scanner > --- WEAPON (2) ------- Assault Rifle Light Assault Rifle > --- INVENTORY (5) ---- Improved Ion Engine Wheel Medium Storage Unit Sensor Array Seismic Detector Peak State ------------ > --- POWER ------------ Light Ion Engine > --- PROPULSION ------- Wheel Compact Wheel > --- UTILITY ---------- Small Storage Unit Improved Terrain Scanner > --- WEAPON ----------- Light Assault Rifle Light Assault Rifle > --- INVENTORY -------- Light Ion Engine [Rating: 9] Favorites ----------- Power Light Ion Engine Engine Light Ion Engine Propulsion Wheel Wheel Wheel Utility Signal Interpreter Device Terrain Scanner Storage Small Storage Unit Processor Signal Interpreter Weapon Light Assault Rifle Ballistic Gun Light Assault Rifle Special Weapon Mining Laser Build | -11 -10 ------- Run | Yrd Mat Slots Evolved . | . . Power . | . . Propulsion . | . . Utility . | . . Weapon . | . . Parts Attached 29 | 9 20 Power 5 | 1 4 Engine 5 | 1 4 Core . | . . Reactor . | . . Propulsion 9 | 3 6 Treads . | . . Leg . | . . Wheel 9 | 3 6 Hover . | . . Flight . | . . Utility 5 | 3 2 Device 3 | 2 1 Storage 1 | 1 . Processor 1 | . 1 Hackware . | . . Protection . | . . Artifact . | . . Weapon 10 | 2 8 Energy Gun . | . . Energy Cannon . | . . Ballistic Gun 8 | 2 6 Ballistic Cannon . | . . Launcher . | . . Special Weapon 2 | . 2 Impact Weapon . | . . Slashing Weapon . | . . Piercing Weapon . | . . Special Melee Weapon . | . . Unidentified Prototypes . | . . Parts Lost 7 | . 7 Power . | . . Propulsion 2 | . 2 Utility 2 | . 2 Weapon 3 | . 3 Highest Loss Streak 3 | . 3 To Critical Strikes 1 | . 1 Average Backups 3 | 1 3 Power . | . 1 Propulsion 1 | . 1 Utility 1 | . 1 Weapon . | . . Tool/Special . | . . Unused Backups 6 | . 6 Power 2 | . 2 Propulsion 1 | . 1 Utility 3 | . 3 Weapon . | . . Tool/Special . | . . Average Slot Usage (%) 95 | . 95 Engine 13 | . 13 Wheel 26 | . 26 Device 14 | . 14 Processor 11 | . 11 Ballistic Gun 25 | . 25 Special Weapon 1 | . 1 Peak Build Rating 9 | 9 9 Average Rating 7 | 6 7 On Entrance 4 | . 9 Avg Prop Armor Cover (%) . | . . Naked Turns . | . . Heaviest Build 11 | 11 11 Greatest Support 26 | 26 20 Greatest Overweight (x) . | . . Average Overweight (x) . | . . Largest Inventory Capacity 8 | 8 5 Average Capacity 5 | 6 5 Most Carried 5 | 5 5 Average Carried 3 | 1 3 Final Capacity 5 | 5 5 Final Carried 5 | 4 5 Class Distribution -------------------- 79% | Mutant 21% | Scavenger-Mutant Dominant Class ---------------- Mutant | -10/Materials Resources | -11 -10 ----------- Run | Yrd Mat Matter Collected 738 | 299 439 Remotely . | . . Salvage Created 733 | 92 641 Parts 48 | 6 42 Haulers Intercepted 1 | . 1 Recyclers Shooed 1 | . 1 Parts Field Recycled . | . . Retrieved Matter . | . . Parts Self-Destructed . | . . Prevented . | . . Parts Restored . | . . Kills | -11 -10 ------- Run | Yrd Mat Combat Hostiles Destroyed 14 | . 14 Guns 13 | . 13 Cannons 1 | . 1 Classes Destroyed 9 | 2 7 Worker 5 | . 5 Builder 2 | . 2 Tunneler 3 | 1 2 Hauler 1 | . 1 Recycler 2 | 1 1 Mechanic 1 | . 1 Watcher 2 | . 2 Swarmer 9 | . 9 Grunt 5 | . 5 Best Kill Streak 5 | 1 5 Combat Bots Only 3 | . 3 Max Kills in Single Turn 2 | 1 2 Gunslinging . | . . Exploded . | . . Melee . | . . Uniques/NPCs Destroyed . | . . Combat | -11 -10 -------- Run | Yrd Mat Hostile Shots Fired 136 | . 136 Missed 37 | . 37 Hits 99 | . 99 Projectile 99 | . 99 Critical Strikes 1 | . 1 Damage Taken 879 | . 879 Core 254 | . 254 Absorbed by Shields . | . . Regen/Repaired (Parts) 45 | . 45 Core Remaining (%) 100 | 100 . Volleys Fired 119 | 6 113 Largest 2 | 2 2 Hottest 200 | 40 200 Shots Fired 236 | 12 224 Gun 225 | 12 213 Cannon . | . . Launcher . | . . Special 11 | . 11 Kinetic 225 | 12 213 Thermal 11 | . 11 Explosive . | . . Electromagnetic . | . . Robot Hit Streak 12 | 12 12 Robot Miss Streak 10 | . 10 Penetration Max . | . . Secondary Targets 2 | . 2 Max Gunslinging Chain 1 | . 1 Shots Hit Robots 127 | 12 115 Core Hits 56 | 4 52 Critical Kills . | . . Critical Parts Destroyed 1 | . 1 Critical Strikes 1 | . 1 Destroy 1 | . 1 Melee Attacks . | . . Impact . | . . Slashing . | . . Piercing . | . . Sneak Attacks . | . . Combat Hostiles . | . . Follow-up Attacks . | . . Damage Inflicted 1132 | 94 1038 Guns 1060 | 94 966 Cannons . | . . Explosions . | . . Melee . | . . Ramming . | . . Kinetic 1060 | 94 966 Thermal 72 | . 72 Explosive . | . . Electromagnetic . | . . Impact . | . . Slashing . | . . Piercing . | . . Highest Corruption . | . . Average Corruption . | . . Corruption Purged . | . . Corruption Blocked . | . . Overload Shots . | . . Overflow Damage . | . . Projectiles . | . . Explosions . | . . Melee . | . . Knockbacks . | . . Impact . | . . Kinetic . | . . Secondary . | . . Self-Inflicted Damage . | . . Shots . | . . Rammed . | . . Targets Rammed . | . . Kicked . | . . Crushed . | . . Highest Temperature 132 | . 132 Average Temperature 23 | . 23 Received Heat Transfer 150 | . 150 Siege Activations . | . . Martial Activations . | . . Shielding Activations . | . . Robots Disrupted . | . . Combat Hostiles . | . . Robots Corrupted . | . . Combat Hostiles . | . . Parts Fried . | . . Impact Corruptions . | . . Robots Melted . | . . Combat Hostiles . | . . Parts Melted . | . . Heat Transferred 150 | . 150 Parts Sabotaged . | . . Parts Stolen . | . . Parts Stripped . | . . Power Chain Reactions . | . . Alert | -11 -10 ------- Run | Yrd Mat Maximum Alert Level . | . . Low Security (%) 100 | 100 100 Level 1 . | . . Level 2 . | . . Level 3 . | . . Level 4 . | . . Level 5 . | . . High Security . | . . Max Security . | . . Peak Influence 73 | 5 73 Initial . | . . Average 17 | . 20 Influence Increases 456 | 10 446 Destroy 0b10 Robot/C 280 | . 280 Destroy 0b10 Robot/NC 80 | 10 70 Destroy Leader 46 | . 46 Destroy Structure 5 | . 5 Lose Combat Pursuer 45 | . 45 Influence Decreases 412 | 10 402 Time Decay 351 | 10 341 Lost Part 61 | . 61 Squads Dispatched 2 | . 2 Investigation 1 | . 1 Extermination . | . . Reinforcement 1 | . 1 Assault . | . . Garrison . | . . Intercept . | . . Searches Triggered . | . . Construction Impeded . | . . Haulers Reinforced . | . . Active Scanning Responses . | . . Cargo Convoy Interrupts . | . . Stealth | -11 -10 --------- Run | Yrd Mat Distress Signals 2 | . 2 Communications Jammed . | . . Distress Signals . | . . Times Spotted 31 | . 31 Peak Tracking Total 4 | . 4 Tactical Retreats 3 | . 3 Traps | -11 -10 ------- Run | Yrd Mat Traps Triggered 1 | . 1 Indirectly . | . . Trap Hack Attempts . | . . Triggered . | . . Disarmed . | . . Reprogrammed . | . . Reused . | . . Traps Extracted . | . . Installed . | . . Triggered . | . . Machines | -11 -10 ---------- Run | Yrd Mat Machines Disabled . | . . Max in Single Turn . | . . Machines Repaired . | . . Machines Dismantled . | . . Machines Sabotaged . | . . Overloaded Fab Kills . | . . Hacking | -11 -10 --------- Run | Yrd Mat Machines Accessed 1 | . 1 Terminals . | . . Fabricators . | . . Repair Stations 1 | . 1 Recycling Units . | . . Scanalyzers . | . . Garrison Access . | . . Total Hacks 4 | . 4 Successful 2 | . 2 Failed 2 | . 2 Catastrophic . | . . Database Lockouts . | . . Manual . | . . Terminals . | . . Fabricators . | . . Repair Stations 4 | . 4 Recycling Units . | . . Scanalyzers . | . . Garrison Access . | . . Terminal Hacks . | . . Fabricator Hacks . | . . Repair Station Hacks 2 | . 2 Scan Component 1 | . 1 Repair 1 | . 1 Recycling Unit Hacks . | . . Scanalyzer . | . . Garrison Access Hacks . | . . Unauthorized Hacks . | . . Terminals . | . . Fabricators . | . . Repair Stations . | . . Recycling Units . | . . Scanalyzers . | . . Garrison Access . | . . Data Cores Recovered . | . . Used . | . . Hacking Detections 1 | . 1 Full Trace Events . | . . Feedback Events . | . . Feedback Blocked . | . . Robot Schematics Acquired . | . . Robots Built . | . . Authchips . | . . Time . | . . Total Robot Build Rating . | . . Part Schematics Acquired . | . . Parts Built . | . . Authchips . | . . Time . | . . Total Part Build Rating . | . . Part Studies Acquired . | . . Parts Repaired 1 | . 1 Time 32 | . 32 Parts Recycled . | . . Recycled Matter . | . . Retrieved Matter . | . . Retrieved Components . | . . Parts Scanalyzed . | . . Part Schematics Acquired . | . . Parts Damaged . | . . Bothacking | -11 -10 ------------ Run | Yrd Mat Used RIF Installer . | . . Robots Hacked . | . . Non-combat . | . . Combat . | . . Robot Hacks Applied . | . . Relay Couplers Released . | . . Fabnet Peak Effective % . | . . Robots Rewired . | . . Allies Hacked . | . . Hacks Repelled . | . . Allies | -11 -10 -------- Run | Yrd Mat Total Allies . | . . Largest Group . | . . Highest-Rated Group . | . . Highest-Rated Ally . | . . Total Orders . | . . Ally Attacks . | . . Total Damage . | . . Kills . | . . Allies Corrupted . | . . Allies Melted . | . . Intel | -11 -10 ------- Run | Yrd Mat Active Infowar (turns) 1179 | 82 1097 Terrain 1179 | 82 1097 Seismic 234 | 32 202 Robot Analysis Total . | . . Derelict Logs Recovered . | . . Drone Launches . | . . Drone Recoveries . | . . Exploration | -11 -10 ------------- Run | Yrd Mat Turns Passed 1411 | 161 1250 Spaces Moved 1156 | 152 1004 Core 9 | 9 . Treads . | . . Legs . | . . Wheels 1147 | 143 1004 Hover . | . . Flight . | . . Fastest Speed 50 | 50 80 Average Speed 80 | 84 80 Slowest Speed 100 | 100 80 Overloaded Moves . | . . Propulsion Burnouts . | . . Robots Hopped . | . . Potential Cave-ins . | . . Cave-ins Triggered . | . . Exploration Rate (%) 43 | 5 82 Regions Visited 1 Branch Regions . Pre-discovered Areas . | . . Known Exits Taken . | . . Unknown Exits Taken 1 | 1 . Scrap Searched . | . . Spaces Dug 4 | . 4 Terrain Destroyed 6 | . 6 Melee . | . . Projectile 6 | . 6 AOE . | . . Terrain Rammed . | . . Walls Destroyed . | . . Machines Disabled . | . . Actions | -11 -10 --------- Run | Yrd Mat Total 1421 | 171 1250 Wait 79 | . 79 Move 1155 | 151 1004 Hop . | . . Pick Up 13 | 4 9 Fast Attach 13 | 7 6 Attach 6 | 1 5 Detach 3 | 1 2 Swap 15 | 1 14 Drop 18 | . 18 Fire 119 | 6 113 Melee . | . . Ram . | . . Kick . | . . Crush . | . . Escape Stasis . | . . Rewire . | . . Trap . | . . Miscellaneous . | . . Route ------- -11/Scrapyard -10/Materials (discovered 3 exits: *Mat x2 / *Min) History --------- Turn | Location | Event 13 | -11/Scrapyard | Discovered new exit (range 16) 162 | -11/Scrapyard | Entered Materials 321 | -10/Materials | Build established: Mutant 411 | -10/Materials | Lost 3 parts (1u2w) 431 | -10/Materials | Discovered new exit (range 7) 552 | -10/Materials | Core integrity fell below 50% 794 | -10/Materials | Discovered new exit (range 5) 820 | -10/Materials | Core integrity fell below 20% 878 | -10/Materials | Identified exit to Materials 1088 | -10/Materials | Discovered exit to Materials (range 7) 1148 | -10/Materials | Repaired Imp. Ion Engine 1308 | -10/Materials | Identified exit to Mines 1412 | -10/Materials | Destroyed by G-34 Mercenary with Small Laser Last Messages --------------- 01201_ Acquired 20 matter. 01209_ S-10 Pest destroyed. 01212_ Acquired 6 matter. 01219_ Dropped Lgt. Assault Rifle. 01259_ Acquired 22 matter. 01265_ Dropped Lgt. Assault Rifle. 01293_ K-01 Serf cleans the Nuclear Reactor. 01298_ Acquired 14 matter. 01304_ K-01 Serf cleans the Nuclear Reactor. 01308_ EXIT=IDENTIFIED: MINES 01322_ O-16 Technician: "IFF HANDSHAKE FAILED. SECURING TERMINAL." 01327_ ALERT: Hostiles spotted, dispatching reinforcements to Terminal M007. 01394_ Acquired 7 matter. 01400_ K-01 Serf destroyed. 01400_ R-06 Scavenger destroyed. 01401_ Acquired 13 matter. 01405_ Dropped Wheel. 01406_ Acquired 10 matter. Map ----- +----------------------------------------------------+ | ??#########???# #??###########????????????? | | ??# ##### #?## = #?#??????????? | | ??# < + #??# #??#?????????? | | ??# =% ##### #??# """ #??#????#????? | | ??##### #???# #??# """"" #???#????????? | | ??????# * #???# ##?# """"" ##???#???##### | | ?????##=%=#?#?#####+####### """"" #????#??## # | | ?????## ! ##?????# + """ #?????#??# < # | | #???### ######## ##### !%* ##???????# # | | ??#???# #########+#####?#??????# # | | ??#???# # # *%=############ # | | ?#????# """ """ * # # % # | | ??##### """ """ | # + " !!! # | | ??#!! """ """ # # *!%!= # | | ?##!! # # ############ # | | ??#* % # ## ##?????#????# # | | ??#* # ## #???????#???# + | | ??#!! # ## #######????## # | | ??#!! #######+### ####+### # #???#?## # | | ??###### #######?## ###o # T #??????# # | | ????#?## """ # #### # ######## # | | ???????#""""" # "" + # # *# # | | ? ?????#""""" # "Y # + # [#* # | | ???????#""""" # ""*#*=! # # """ [+ # | | ??? ???# """ # %+=%! # # "R #% # | | ?????#?# # ####@! # # """ #= # | | ???????# % # #??#! # # # # | | ??? ???# ######??# ############# # | | ?????#################### #???????#???# # | | ###### ##### ##g ############# # | | ! # | | > % % # | | "T" + | | ###### ##### ##+#################### # | | ?????###+###?#?# "!"!" # #???#???##????# # | | ???????????????#""!"!""# #???????????#?# # | | ???? ??????????#########[ """ #???????????### # | | ???? ?"????????????????# """ #???#?????#???# # | | ?????????? ??#??????#??# """ #?????#???????# # | | ? ??????????????????##?# #?????????????# # | | ???????????????????????# % """ #?#???????????# # | | ?????????? ??###????#??# """ #?????????????# # | | ?????? ?? ??????????#?## """ #??#?????#????# # | | ???????????????###????# #???????#?????# # | | ?????#??#??#???####??### ##????#???????# + | | ????????????????# ######+###+###?#???????????# # | | ???#???#?########"# # ################# # | | ?????#???# # + # | | ?????????# #! # ############### # | | ?????????# # # ###?##???#????# | +----------------------------------------------------+ Best States ------------- Heat Dissipation 25 Energy Generation 12 Energy Capacity 265 Matter Stores 300 Matter Capacity 300 Sight Range 16 Terrain Scan Range 16 Terrain Scan Density 10 Evasion (%) 44 Item Schematics ----------------- None Robot Schematics ------------------ None Fabricated ------------ Nothing Repaired ---------- Imp. Ion Engine | 35% | -10/Materials Studied --------- None Alien Tech Used ----------------- None Achievements -------------- None Challenges ------------ None Game ------ Seed ActuatorZeronetComputer Manual? 0 Play Time 00:19:03 Cumulative 31.5 hours Start 2026.02.11 @ 22:29:38 End 2026.02.11 @ 22:45:01 Sessions 1 Manual Loads 0 Difficulty Rogue Special Mode None Game No. 33 Rogue 33 Adventurer 0 Explorer 0 Win Type - Total 0 Types 0/0/0/0/0/0/0/0/0/0 Lore% 16 Gallery% 15 Achievement% 14 Wizard Run 0 Options --------- Layout 1 ASCII 0 Keyboard 1 Movement Numpad Keybinds 0 Fullscreen 2 Font 24/Cog Map View 50x35 Zoom Use 0% Tactical HUD 1 Map Filters NONE Filters NONE Steam 1 RUN: 6da482d6-4564-4589-810c-7712b74e4bda